bitfinex-derivatives/quotes_BTCF0:USTF0_20250416
["timestamp","ask_amount","ask_price","bid_price","bid_amount"]
[1744772434838,0.1809323,83947.0,83946.0,0.001]
[1744772435643,0.1809323,83947.0,83946.0,0.1201337]
[1744772436835,0.0595704,83942.0,83940.0,0.1787118]
[1744772437040,0.6022126,83941.0,83940.0,0.1787118]
[1744772438346,0.6022126,83941.0,83940.0,0.1807118]
[1744772438848,0.6022126,83941.0,83940.0,0.1817118]
[1744772439841,0.6022126,83941.0,83940.0,0.1807118]
[1744772441133,0.6022126,83941.0,83940.0,0.1797118]
[1744772441841,0.6022126,83941.0,83940.0,0.1787118]
[1744772442747,0.1191422,83940.0,83939.0,0.11932224]
[1744772443147,0.1845422,83940.0,83939.0,0.11932224]
[1744772444540,0.1845422,83940.0,83939.0,0.12032224]
[1744772445135,0.1845422,83940.0,83939.0,0.00117864]
[1744772446835,0.5453422,83940.0,83939.0,0.00117864]
[1744772448945,0.119155,83931.0,83930.0,0.12829192]
[1744772449145,0.479955,83931.0,83930.0,0.12829192]
[1744772449349,0.573255,83931.0,83930.0,0.16149192]
[1744772449940,0.573255,83931.0,83930.0,0.16549192]
[1744772450744,0.573255,83931.0,83930.0,0.16649192]
[1744772452442,0.511055,83931.0,83930.0,0.16649192]
[1744772452638,0.119235,83931.0,83930.0,0.19709192]
[1744772452945,8e-05,83931.0,83930.0,0.19709192]
[1744772453150,0.0595758,83934.0,83933.0,0.1191521]
[1744772453541,0.0595758,83934.0,83933.0,0.2151521]
[1744772454357,0.0595758,83934.0,83933.0,0.2171521]
[1744772455853,0.0595758,83934.0,83933.0,0.2191521]
[1744772458250,0.1222758,83934.0,83933.0,0.2191521]
[1744772461259,0.1222758,83934.0,83933.0,0.1885521]
[1744772461859,0.1222758,83934.0,83933.0,0.2191521]
[1744772462562,0.0595758,83934.0,83933.0,0.2191521]
[1744772463157,0.1203758,83934.0,83933.0,0.1885521]
[1744772463862,0.1203758,83934.0,83933.0,0.2212521]
[1744772465165,0.0900758,83934.0,83933.0,0.2212521]
[1744772466755,0.1221758,83934.0,83933.0,0.2212521]
[1744772467869,0.1221758,83934.0,83933.0,0.0368]
[1744772468163,0.1551758,83934.0,83933.0,0.004]
[1744772469565,0.1551758,83934.0,83928.0,0.0595795]
[1744772469566,0.1191663,83923.0,83920.0,0.0595852]
[1744772469752,0.4799663,83923.0,83922.0,0.11934634]
[1744772470753,0.5402663,83923.0,83922.0,0.15164634]
[1744772471158,0.5402663,83923.0,83922.0,0.15964634]
[1744772473560,0.5402663,83923.0,83922.0,0.16843403]
[1744772476469,0.5724663,83923.0,83922.0,0.16843403]
[1744772477967,0.5724663,83923.0,83922.0,0.00817864]
[1744772478754,0.1191734,83918.0,83917.0,0.0321]
[1744772478963,0.1787679,83916.0,83915.0,0.1191769]
[1744772479169,0.2383567,83916.0,83915.0,0.1191769]
[1744772479567,0.3005567,83916.0,83915.0,0.1191769]
[1744772479762,0.3005567,83916.0,83915.0,0.12829013]
[1744772479959,0.1191791,83914.0,83913.0,0.00512432]
[1744772480671,0.1191876,83908.0,83907.0,0.00012006]
[1744772480857,0.4799876,83908.0,83907.0,0.11930916]
[1744772482080,0.4819876,83908.0,83907.0,0.11930916]
[1744772482672,0.4829876,83908.0,83907.0,0.11930916]
[1744772484774,0.4819876,83908.0,83907.0,0.12829128]
[1744772485370,0.4819876,83908.0,83907.0,0.00910218]
[1744772485567,0.4819876,83908.0,83907.0,0.00012006]
[1744772485874,0.4819876,83908.0,83907.0,0.11930916]
[1744772487473,0.5439876,83908.0,83907.0,0.11930916]
[1744772487974,0.5439876,83908.0,83907.0,0.15160916]
[1744772489669,0.119199,83900.0,83899.0,0.1513004]
[1744772489870,0.119199,83900.0,83899.0,0.1831004]
[1744772490063,0.151099,83900.0,83899.0,0.1831004]
[1744772490772,0.151099,83900.0,83899.0,0.1851004]
[1744772491070,0.182399,83900.0,83899.0,0.2155004]
[1744772491570,0.182399,83900.0,83899.0,0.1834004]
[1744772491871,0.182399,83900.0,83899.0,0.19244586]
[1744772493575,0.4799976,83901.0,83900.0,0.119199]
[1744772493871,0.4799976,83901.0,83900.0,0.185199]
[1744772496164,0.4799976,83901.0,83900.0,0.186199]
[1744772497466,0.1191976,83901.0,83900.0,0.186199]
[1744772506379,0.0311,83907.0,83900.0,0.186199]
[1744772506380,0.0768,83915.0,83907.0,0.1191891]
[1744772506575,0.1191826,83912.0,83907.0,0.1191891]
[1744772506775,0.00014581,83913.0,83907.0,0.1835891]
[1744772507087,0.059591,83912.0,83907.0,0.2151891]
[1744772507383,0.00217875,83908.0,83907.0,0.2151891]
[1744772512182,0.03217875,83908.0,83907.0,0.2151891]
[1744772518488,0.06417875,83908.0,83907.0,0.2151891]
[1744772520488,0.18336635,83908.0,83907.0,0.1835891]
[1744772520791,0.18336635,83908.0,83907.0,0.1191891]
[1744772521478,0.18336635,83908.0,83907.0,0.1508891]
[1744772529094,0.06417875,83908.0,83907.0,0.1508891]
[1744772529294,0.00217875,83908.0,83907.0,0.1508891]
[1744772529493,0.00217875,83908.0,83907.0,0.1837891]
[1744772529889,0.00225875,83908.0,83907.0,0.1837891]
[1744772531095,0.00217875,83908.0,83907.0,0.1837891]
[1744772531301,0.0325,83914.0,83907.0,0.1837891]
[1744772531302,0.00010801,83914.0,83913.0,0.1191805]
[1744772531701,0.3608,83915.0,83914.0,0.1191791]
[1744772532300,0.3608,83915.0,83914.0,0.1817791]
[1744772532998,8e-05,83915.0,83914.0,0.1817791]
[1744772533298,0.00017875,83923.0,83922.0,0.1191677]
[1744772533798,0.00017875,83923.0,83922.0,0.2129677]
[1744772535390,0.00017875,83923.0,83922.0,0.22488026]
[1744772535698,0.00117875,83923.0,83922.0,0.22488026]
[1744772537101,0.00117875,83923.0,83922.0,0.2129677]
[1744772537702,0.00117875,83923.0,83922.0,0.1519677]
[1744772538095,0.12034505,83923.0,83922.0,0.1191677]
[1744772538302,0.18224505,83923.0,83922.0,0.1191677]
[1744772538798,0.1787615,83919.0,83918.0,0.1787596]
[1744772539200,0.2406615,83919.0,83918.0,0.0595862]
[1744772539501,0.1787722,83913.0,83912.0,0.1191809]
[1744772539701,0.5395722,83913.0,83912.0,0.1191809]
[1744772540305,0.6021722,83913.0,83912.0,0.1191809]
[1744772541796,0.6021722,83913.0,83912.0,0.1211809]
[1744772542401,0.6021722,83913.0,83912.0,0.1231809]
[1744772543398,0.6031722,83913.0,83912.0,0.1211809]
[1744772543694,0.6031722,83913.0,83912.0,0.1191809]
[1744772544292,0.1191848,83911.0,83910.0,0.1191836]
[1744772544900,0.1809848,83911.0,83910.0,0.1191836]
[1744772545495,0.1829848,83911.0,83910.0,0.1191836]
[1744772546091,0.5447848,83911.0,83910.0,0.1191836]
[1744772546898,0.5447848,83911.0,83910.0,0.1503836]
[1744772547100,0.5447848,83911.0,83910.0,0.1191836]
[1744772548503,0.5447848,83911.0,83910.0,0.1505836]
[1744772550001,0.1839848,83911.0,83910.0,0.1505836]
[1744772551519,0.001,83911.0,83910.0,0.1505836]
[1744772551808,0.00041154,83926.0,83922.0,0.1191677]
[1744772552009,0.00041154,83926.0,83922.0,0.1518677]
[1744772552199,0.11934505,83923.0,83922.0,0.1518677]
[1744772552399,0.11942505,83923.0,83922.0,0.1518677]
[1744772552605,0.11934505,83923.0,83922.0,0.1518677]
[1744772552821,0.11942505,83923.0,83922.0,0.2165677]
[1744772553111,0.12442505,83923.0,83922.0,0.2165677]
[1744772554313,0.18582505,83923.0,83922.0,0.2165677]
[1744772554706,0.18582505,83923.0,83922.0,0.1849677]
[1744772558215,0.18582505,83923.0,83922.0,0.1522677]
[1744772566412,0.21862505,83923.0,83922.0,0.1522677]
[1744772571134,0.00517875,83923.0,83922.0,0.1522677]
[1744772571322,0.00525875,83923.0,83922.0,0.1835677]
[1744772572331,0.03765875,83923.0,83922.0,0.1835677]
[1744772572920,0.00525875,83923.0,83922.0,0.1835677]
[1744772580333,0.06975875,83923.0,83922.0,0.1835677]
[1744772582938,0.18892505,83923.0,83922.0,0.1522677]
[1744772583138,0.22092505,83923.0,83922.0,0.1522677]
[1744772583639,0.22092505,83923.0,83922.0,0.1191677]
[1744772585341,0.22092505,83923.0,83922.0,0.1496677]
[1744772587443,0.1191706,83920.0,83919.0,0.1191709]
[1744772587645,0.4799706,83920.0,83919.0,0.1191709]
[1744772587843,0.5453706,83920.0,83919.0,0.1191709]
[1744772589046,0.5473706,83920.0,83919.0,0.1191709]
[1744772589238,0.5483706,83920.0,83919.0,0.1191709]
[1744772592547,0.0684,83920.0,83919.0,0.1191709]
[1744772592750,0.0361,83920.0,83919.0,0.1191709]
[1744772593049,0.003,83920.0,83919.0,0.1191709]
[1744772593241,0.003,83920.0,83919.0,0.1499709]
[1744772593442,0.00308,83920.0,83919.0,0.1499709]
[1744772598843,0.00308,83920.0,83919.0,0.3099709]
[1744772599045,0.00308,83920.0,83919.0,0.1499709]
[1744772599246,0.003,83920.0,83919.0,0.1499709]
[1744772599450,0.00308,83920.0,83919.0,0.1599709]
[1744772599854,0.00308,83920.0,83919.0,0.4099709]
[1744772600048,0.00014581,83930.0,83929.0,0.1191578]
[1744772600250,0.0307,83939.0,83938.0,0.119145]
[1744772600742,0.0307,83939.0,83938.0,0.180645]
[1744772600944,0.0616,83939.0,83938.0,0.180645]
[1744772601745,0.1897436,83939.0,83938.0,0.181645]
[1744772602750,0.1937436,83939.0,83938.0,0.181645]
[1744772607555,0.0746,83939.0,83938.0,0.181645]
[1744772607757,0.1937436,83939.0,83938.0,0.184145]
[1744772608358,0.1937436,83939.0,83938.0,0.150845]
[1744772613761,0.1937436,83939.0,83938.0,0.001]
[1744772614064,0.1937441,83939.0,83938.0,0.119145]
[1744772614459,0.1937441,83939.0,83938.0,0.149545]
[1744772615366,0.1938241,83939.0,83938.0,0.149545]
[1744772620063,0.07468,83939.0,83938.0,0.149545]
[1744772622466,0.1938236,83939.0,83938.0,0.149545]
[1744772628471,0.07468,83939.0,83938.0,0.149545]
[1744772629872,0.01308,83939.0,83938.0,0.149545]
[1744772630068,0.013,83939.0,83938.0,0.180045]
[1744772630474,0.01308,83939.0,83938.0,0.180045]
[1744772631165,0.013,83939.0,83938.0,0.180045]
[1744772631973,0.01308,83939.0,83938.0,0.180045]
[1744772633971,0.1322236,83939.0,83938.0,0.149545]
[1744772634169,0.1625236,83939.0,83938.0,0.149545]
[1744772635065,0.1957236,83939.0,83938.0,0.149545]
[1744772641779,0.1957236,83939.0,83938.0,0.119145]
[1744772641969,0.1191465,83937.0,83936.0,0.1787197]
[1744772642373,0.1795465,83937.0,83936.0,0.1787197]
[1744772643283,0.1835465,83937.0,83936.0,0.1787197]
[1744772643475,0.1915465,83937.0,83936.0,0.1797197]
[1744772655594,0.0724,83937.0,83936.0,0.1797197]
[1744772657385,0.1915465,83937.0,83936.0,0.1797197]
[1744772659193,0.119155,83931.0,83930.0,0.00017875]
[1744772659392,0.1191734,83921.0,83920.0,0.1787501]
[1744772659599,0.1191777,83915.0,83914.0,0.0308]
[1744772659783,0.1191791,83914.0,83913.0,0.3007709]
[1744772660095,0.1522791,83914.0,83913.0,0.3007709]
[1744772661686,0.1522791,83914.0,83913.0,0.1191805]
[1744772662086,0.1522791,83914.0,83913.0,0.1201805]
[1744772662686,0.5130791,83914.0,83913.0,0.001]
[1744772662895,0.5130791,83914.0,83913.0,0.1201805]
[1744772664193,0.1191862,83909.0,83908.0,0.0595933]
[1744772664899,0.1191891,83907.0,83906.0,0.0595945]
[1744772665193,0.1191905,83906.0,83905.0,0.11936955]
[1744772665396,0.1811905,83906.0,83905.0,0.11936955]
[1744772666787,0.1821905,83906.0,83905.0,0.11936955]
[1744772675304,0.001,83906.0,83905.0,0.11936955]
[1744772675505,0.001,83906.0,83905.0,0.18226955]
[1744772675705,0.00108,83906.0,83905.0,0.18226955]
[1744772676203,0.001,83906.0,83905.0,0.18226955]
[1744772676505,0.00108,83906.0,83905.0,0.18226955]
[1744772676904,8e-05,83906.0,83905.0,0.18326955]
[1744772677502,8e-05,83906.0,83905.0,0.18426955]
[1744772682708,0.1191784,83915.0,83914.0,0.0595895]
[1744772684099,0.1191784,83915.0,83914.0,0.1569895]
[1744772684609,0.1211784,83915.0,83914.0,0.1569895]
[1744772684808,0.002,83915.0,83914.0,0.1569895]
[1744772685009,0.0345,83915.0,83914.0,0.1569895]
[1744772685404,0.0325,83915.0,83914.0,0.1569895]
[1744772685602,0.0335,83915.0,83914.0,0.1569895]
[1744772686210,0.1526777,83915.0,83914.0,0.1569895]
[1744772686409,0.1830777,83915.0,83914.0,0.1569895]
[1744772689414,0.1830777,83915.0,83914.0,0.1240895]
[1744772690313,0.1830777,83915.0,83914.0,0.0927895]
[1744772690511,0.1191805,83913.0,83912.0,0.1787716]
[1744772691019,0.1824805,83913.0,83912.0,0.1787716]
[1744772692717,0.1824805,83913.0,83912.0,0.1797716]
[1744772706327,0.1824805,83913.0,83912.0,0.001]
[1744772706528,0.178785,83907.0,83906.0,0.0595952]
[1744772707729,0.272085,83907.0,83906.0,0.1787803]
[1744772708529,0.272085,83907.0,83906.0,0.0595952]
[1744772708925,0.272085,83907.0,83880.0,0.54417866]
[1744772708926,0.0933,83907.0,83880.0,0.54417866]
[1744772709126,0.0933,83907.0,83895.0,0.0596026]
[1744772709127,0.1192047,83896.0,83895.0,0.0596026]
[1744772709318,0.1788149,83894.0,83893.0,0.119208]
[1744772709821,0.2419149,83894.0,83893.0,0.119208]
[1744772710431,0.2419149,83894.0,83893.0,0.152408]
[1744772710635,0.2419149,83894.0,83893.0,0.154408]
[1744772710928,0.2419149,83894.0,83893.0,0.157408]
[1744772711230,0.2419149,83894.0,83893.0,0.124208]
[1744772711829,0.2419149,83894.0,83893.0,0.005]
[1744772712129,0.2419149,83894.0,83887.0,0.00512591]
[1744772712130,0.119216,83888.0,83887.0,0.00512591]
[1744772712331,0.2384562,83881.0,83880.0,0.1192227]
[1744772712523,0.5992562,83881.0,83880.0,0.1524227]
[1744772712919,0.5992562,83881.0,83880.0,0.1525027]
[1744772713730,0.6002562,83881.0,83880.0,0.00808]
[1744772714033,0.6002562,83881.0,83880.0,0.1272274]
[1744772714531,0.6002562,83881.0,83880.0,0.1273074]
[1744772715128,0.00208,83881.0,83880.0,0.13810492]
[1744772715718,0.03518,83881.0,83880.0,0.17030492]
[1744772717024,0.00019684,83890.0,83880.0,0.48107752]
[1744772717225,0.2093036,83901.0,83900.0,0.119199]
[1744772717435,0.2689038,83901.0,83900.0,0.119199]
[1744772718330,0.1192004,83899.0,83898.0,0.0911002]
[1744772718531,0.4800004,83899.0,83898.0,0.0911002]
[1744772719430,0.1788063,83898.0,83895.0,0.0596029]
[1744772719630,0.2400063,83898.0,83897.0,0.119203]
[1744772719830,0.1208016,83898.0,83895.0,0.1788056]
[1744772720141,0.1192146,83889.0,83888.0,0.0900078]
[1744772720439,0.1192146,83889.0,83888.0,0.0596078]
[1744772720939,0.1192146,83889.0,83888.0,0.0596878]
[1744772721140,0.1495146,83889.0,83888.0,0.0596878]
[1744772721636,0.1804146,83889.0,83888.0,0.0646878]
[1744772722141,0.1804146,83889.0,83888.0,0.0676878]
[1744772726143,0.1804146,83889.0,83888.0,0.00808]
[1744772726343,0.1804146,83889.0,83882.0,0.000108]
[1744772726344,0.1192232,83883.0,83882.0,0.000108]
[1744772726531,0.4800232,83883.0,83882.0,0.000108]
[1744772726734,0.1192246,83882.0,83881.0,0.0305]
[1744772726939,0.1514246,83882.0,83881.0,0.0305]
[1744772727144,0.0596134,83881.0,83877.0,0.00204549]
[1744772727446,0.1192303,83878.0,83877.0,0.00204549]
[1744772727742,0.1192303,83878.0,83877.0,0.12127719]
[1744772727941,0.1850303,83878.0,83877.0,0.13035486]
[1744772728131,0.1850303,83878.0,83877.0,0.12135719]
[1744772728337,0.1850303,83878.0,83877.0,0.12835719]
[1744772728941,0.1860303,83878.0,83877.0,0.12935719]
[1744772729137,0.1870303,83878.0,83877.0,0.12935719]
[1744772729337,0.1870303,83878.0,83877.0,0.12927719]
[1744772729534,0.1870303,83878.0,83877.0,0.16005719]
[1744772730441,0.1870303,83878.0,83877.0,0.15705719]
[1744772730843,0.1870303,83878.0,83877.0,0.12635719]
[1744772731852,0.1870303,83878.0,83877.0,0.13541358]
[1744772733249,0.1870303,83878.0,83877.0,0.00712549]
[1744772733454,0.1192374,83873.0,83872.0,0.000108]
[1744772733647,0.4800374,83873.0,83872.0,0.000108]
[1744772733858,0.1788639,83870.0,83869.0,0.0596211]
[1744772734756,0.2090639,83870.0,83869.0,0.0596211]
[1744772734953,0.2100639,83870.0,83869.0,0.0666211]
[1744772735152,0.2100639,83870.0,83869.0,0.0994211]
[1744772735554,0.2110639,83870.0,83869.0,0.0994211]
[1744772735749,0.2110639,83870.0,83869.0,0.0398]
[1744772735954,0.2110639,83870.0,83869.0,0.1590431]
[1744772736654,0.2110639,83870.0,83869.0,0.0398]
[1744772736959,0.2110639,83870.0,83869.0,0.1581231]
[1744772737150,0.1808639,83870.0,83869.0,0.1893231]
[1744772739850,0.2130639,83870.0,83869.0,0.1893231]
[1744772740660,0.2130639,83870.0,83869.0,0.1873231]
[1744772741754,0.2120639,83870.0,83869.0,0.1873231]
[1744772744660,0.5728639,83870.0,83869.0,0.1873231]
[1744772750762,0.2120639,83870.0,83869.0,0.1873231]
[1744772750963,0.001,83870.0,83869.0,0.1873231]
[1744772752367,0.3608,83871.0,83869.0,0.1873231]
[1744772752368,0.05980634,83886.0,83880.0,0.1192274]
[1744772752573,0.48020475,83881.0,83880.0,0.1192274]
[1744772753072,0.48020475,83881.0,83880.0,0.1843274]
[1744772754069,0.48020475,83881.0,83880.0,0.1863274]
[1744772757974,0.11940475,83881.0,83880.0,0.1863274]
[1744772759870,0.00017875,83881.0,83880.0,0.1863274]
[1744772764769,0.06287875,83881.0,83880.0,0.1863274]
[1744772767380,0.06287875,83881.0,83880.0,0.1537274]
[1744772767972,0.18210475,83881.0,83880.0,0.1537274]
[1744772768169,0.18210475,83881.0,83880.0,0.1213074]
[1744772768574,0.18210475,83881.0,83880.0,0.00208]
[1744772768775,0.18210475,83881.0,83880.0,0.002]
[1744772769070,0.18210475,83881.0,83880.0,0.00208]
[1744772769270,0.18210475,83881.0,83880.0,0.1213074]
[1744772771183,0.54290475,83881.0,83880.0,0.1213074]
[1744772776891,0.54290475,83881.0,83880.0,0.00208]
[1744772777690,0.54290475,83881.0,83868.0,0.12838858]
[1744772777691,0.1192431,83869.0,83868.0,0.12838858]
[1744772777989,0.4800431,83869.0,83868.0,0.12838858]
[1744772778187,0.5779431,83869.0,83868.0,0.12838858]
[1744772778380,0.5779431,83869.0,83868.0,0.12846858]
[1744772778893,0.1788746,83865.0,83864.0,0.1192491]
[1744772779284,0.1788746,83865.0,83864.0,0.1193291]
[1744772779685,0.2443746,83865.0,83864.0,0.1193291]
[1744772779881,0.119253,83862.0,83861.0,0.0051275]
[1744772780194,0.480053,83862.0,83861.0,0.13313391]
[1744772780391,0.480053,83862.0,83861.0,0.13321391]
[1744772781385,0.480053,83862.0,83861.0,0.0052075]
[1744772781691,0.480053,83862.0,83861.0,0.1243819]
[1744772781886,0.480053,83862.0,83861.0,0.1244619]
[1744772782082,0.481053,83862.0,83861.0,0.1284619]
[1744772786793,0.544053,83862.0,83861.0,0.1284619]
[1744772787993,0.4248,83862.0,83861.0,0.1284619]
[1744772788297,0.4248,83862.0,83861.0,0.1606619]
[1744772788494,0.544053,83862.0,83861.0,0.1606619]
[1744772788802,0.3618,83862.0,83861.0,0.1918619]
[1744772789111,0.001,83862.0,83861.0,0.1918619]
[1744772789296,0.07644,83876.0,83875.0,0.1192345]
[1744772789484,0.1956731,83876.0,83875.0,0.1192345]
[1744772789689,0.1192331,83876.0,83875.0,0.1192345]
[1744772789885,0.1192331,83876.0,83875.0,0.1827345]
[1744772791294,0.1202331,83876.0,83875.0,0.1827345]
[1744772791490,0.1212331,83876.0,83875.0,0.1827345]
[1744772791689,0.002,83876.0,83875.0,0.1827345]
[1744772792290,0.1212331,83876.0,83875.0,0.1827345]
[1744772800399,0.1215531,83876.0,83875.0,0.18385816]
[1744772802601,0.1515531,83876.0,83875.0,0.18385816]
[1744772804896,0.1512331,83876.0,83875.0,0.18385816]
[1744772805301,0.1512331,83876.0,83875.0,0.1827345]
[1744772805697,0.1512331,83876.0,83875.0,0.18385816]
[1744772806098,0.1841531,83876.0,83875.0,0.18385816]
[1744772808016,0.1841531,83876.0,83875.0,0.12035816]
[1744772808303,0.1841531,83876.0,83875.0,0.12043816]
[1744772809212,0.1841531,83876.0,83875.0,0.12035816]
[1744772809412,0.1841531,83876.0,83875.0,0.12043816]
[1744772809711,0.5449531,83876.0,83875.0,0.12043816]
[1744772809911,0.5446331,83876.0,83875.0,0.1192345]
[1744772810308,0.5449531,83876.0,83875.0,0.12035816]
[1744772810505,0.42572,83876.0,83860.0,0.0088037]
[1744772810704,0.1192445,83868.0,83867.0,0.000108]
[1744772810903,0.4800445,83868.0,83867.0,0.000108]
[1744772811105,0.119253,83862.0,83861.0,0.0051275]
[1744772811299,0.119253,83862.0,83861.0,0.184007]
[1744772811619,0.119253,83862.0,83861.0,0.064754]
[1744772812005,0.180653,83862.0,83861.0,0.064754]
[1744772812317,0.181653,83862.0,83861.0,0.068754]
[1744772814108,0.19371368,83862.0,83861.0,0.068754]
[1744772814309,0.181653,83862.0,83861.0,0.068834]
[1744772814807,0.181653,83862.0,83861.0,0.100234]
[1744772815009,0.181653,83862.0,83861.0,0.100154]
[1744772817714,0.179253,83862.0,83861.0,0.100154]
[1744772820308,0.001,83862.0,83861.0,0.100154]
[1744772820502,0.001,83862.0,83861.0,0.131854]
[1744772820707,0.3608,83865.0,83864.0,0.1192502]
[1744772820908,8e-05,83875.0,83874.0,0.1192359]
[1744772821107,0.00032,83876.0,83875.0,0.1192345]
[1744772821312,0.1195531,83876.0,83875.0,0.1523345]
[1744772821612,0.1195531,83876.0,83875.0,0.2143345]
[1744772822202,0.1507531,83876.0,83875.0,0.2143345]
[1744772822407,0.1811531,83876.0,83875.0,0.2143345]
[1744772822613,0.1821531,83876.0,83875.0,0.2143345]
[1744772824211,0.1831531,83876.0,83875.0,0.2143345]
[1744772824915,0.1828331,83876.0,83875.0,0.2143345]
[1744772825313,0.1831531,83876.0,83875.0,0.2143345]
[1744772827411,0.1798531,83876.0,83875.0,0.2143345]
[1744772828813,0.1798531,83876.0,83875.0,0.1826345]
[1744772829913,0.1795331,83876.0,83875.0,0.1826345]
[1744772830512,0.1798531,83876.0,83875.0,0.1826345]
[1744772832826,0.00232,83876.0,83875.0,0.2130345]
[1744772833732,0.0024,83876.0,83875.0,0.2130345]
[1744772835018,0.002,83876.0,83875.0,0.2130345]
[1744772835220,0.00017875,83881.0,83880.0,0.1192274]
[1744772835419,0.00017875,83881.0,83880.0,0.13127939]
[1744772835619,0.00025875,83881.0,83880.0,0.13127939]
[1744772835829,0.00025875,83881.0,83880.0,0.19517939]
[1744772836623,0.00217875,83881.0,83880.0,0.19517939]
[1744772836932,0.00225875,83881.0,83880.0,0.19517939]
[1744772837232,0.0308,83898.0,83897.0,0.1192033]
[1744772837423,0.03115873,83898.0,83897.0,0.1192033]
[1744772837623,0.16169062,83905.0,83904.0,0.1191933]
[1744772837829,0.19249062,83905.0,83904.0,0.1191933]
[1744772838824,0.20049062,83905.0,83904.0,0.1201933]
[1744772840236,0.0692,83905.0,83904.0,0.1201933]
[1744772840430,0.07352,83905.0,83904.0,0.1524933]
[1744772840625,0.0124,83905.0,83904.0,0.1524933]
[1744772841222,0.01232,83905.0,83904.0,0.1524933]
[1744772841831,0.0124,83905.0,83904.0,0.1524933]
[1744772842018,0.01232,83905.0,83904.0,0.1524933]
[1744772842430,0.0124,83905.0,83904.0,0.1524933]
[1744772843535,0.0124,83905.0,83904.0,0.16150978]
[1744772844929,0.012,83905.0,83904.0,0.16150978]
[1744772845331,0.01232,83905.0,83904.0,0.16150978]
[1744772846827,0.1315119,83905.0,83904.0,0.12920978]
[1744772847223,0.01232,83905.0,83904.0,0.12920978]
[1744772847733,0.04282,83905.0,83904.0,0.12920978]
[1744772850025,0.0425,83905.0,83904.0,0.12920978]
[1744772850537,0.04282,83905.0,83904.0,0.12920978]
[1744772850731,0.07372,83905.0,83904.0,0.12920978]
[1744772850936,0.07372,83905.0,83904.0,0.16220978]
[1744772851637,0.1929119,83905.0,83904.0,0.12920978]
[1744772852040,0.2239119,83905.0,83904.0,0.12920978]
[1744772852539,0.2239119,83905.0,83904.0,0.1201933]
[1744772853334,0.5847119,83905.0,83904.0,0.1201933]
[1744772854833,0.5847119,83905.0,83904.0,0.001]
[1744772855042,0.5843919,83905.0,83904.0,0.001]
[1744772855430,0.5847119,83905.0,83904.0,0.001]
[1744772855842,0.1191976,83901.0,83900.0,0.1191987]
[1744772856240,0.1829976,83901.0,83900.0,0.1191987]
[1744772856538,0.1829976,83901.0,83896.0,0.05978106]
[1744772856539,0.0595995,83900.0,83896.0,0.05978106]
[1744772856743,0.3608,83897.0,83896.0,0.05978106]
[1744772857538,0.37268034,83897.0,83896.0,0.05978106]
[1744772857734,0.49188364,83897.0,83896.0,0.05978106]
[1744772857935,0.52458364,83897.0,83896.0,0.05978106]
[1744772858136,0.56228364,83897.0,83896.0,0.06078106]
[1744772858540,0.56228364,83897.0,83896.0,0.00117886]
[1744772858735,0.1192246,83882.0,83881.0,0.4204129]
[1744772859142,0.1192246,83882.0,83881.0,0.5992422]
[1744772859637,0.1841246,83882.0,83881.0,0.5992422]
[1744772860437,0.06522,83882.0,83881.0,0.5992422]
[1744772860635,0.06622,83882.0,83881.0,0.60834238]
[1744772861440,0.06522,83882.0,83881.0,0.60834238]
[1744772861642,0.06722,83882.0,83881.0,0.60834238]
[1744772861832,0.06822,83882.0,83881.0,0.60834238]
[1744772864948,0.0679,83882.0,83881.0,0.60834238]
[1744772865951,0.06822,83882.0,83881.0,0.60834238]
[1744772868748,0.00332,83882.0,83881.0,0.60834238]
[1744772868952,0.00017886,83890.0,83889.0,0.1192146]
[1744772869252,0.11939206,83890.0,83889.0,0.1513146]
[1744772869646,0.00017886,83890.0,83889.0,0.1513146]
[1744772870046,0.03087886,83890.0,83889.0,0.2168146]
[1744772870351,0.03095886,83890.0,83889.0,0.2168146]
[1744772870746,0.00025886,83890.0,83889.0,0.2168146]
[1744772870952,0.00010801,83895.0,83894.0,0.1192075]
[1744772871147,0.1191976,83901.0,83900.0,0.1787971]
[1744772871343,0.11930561,83901.0,83900.0,0.1787971]
[1744772871540,0.18330561,83901.0,83900.0,0.1787971]
[1744772871739,0.18330561,83901.0,83900.0,0.2420971]
[1744772872239,0.18430561,83901.0,83900.0,0.2420971]
[1744772873050,0.18530561,83901.0,83900.0,0.2420971]
[1744772873350,0.06610801,83901.0,83900.0,0.2420971]
[1744772873554,0.00210801,83901.0,83900.0,0.2420971]
[1744772873849,0.00208,83901.0,83900.0,0.2420971]
[1744772880043,0.002,83901.0,83900.0,0.2420971]
[1744772886149,0.002,83901.0,83900.0,0.2106971]
[1744772886350,0.0332,83901.0,83900.0,0.2106971]
[1744772886863,0.0657,83901.0,83900.0,0.2106971]
[1744772892054,0.00017886,83909.0,83908.0,0.1191876]
[1744772892257,0.00014581,83912.0,83911.0,0.178775]
[1744772892671,0.0316,83920.0,83916.0,0.0595877]
[1744772892969,0.0316,83920.0,83919.0,0.3608]
[1744772893269,0.0316,83920.0,83919.0,0.479972]
[1744772893765,0.0316,83920.0,83919.0,0.544172]
[1744772893969,0.0316,83923.0,83922.0,0.1191677]
[1744772894262,0.0316,83923.0,83922.0,0.1509677]
[1744772895266,0.0356,83923.0,83922.0,0.1509677]
[1744772895469,0.0436,83923.0,83922.0,0.1519677]
[1744772895654,0.012,83923.0,83922.0,0.1519677]
[1744772895854,0.03227875,83928.0,83922.0,0.5636]
[1744772896058,0.00017875,83928.0,83927.0,0.1191606]
[1744772897868,0.00417875,83928.0,83927.0,0.1191606]
[1744772898067,0.00917875,83928.0,83927.0,0.1191606]
[1744772898566,0.00917875,83928.0,83927.0,0.1201606]
[1744772901475,0.00917875,83928.0,83927.0,0.12898807]
[1744772907775,0.00917875,83928.0,83927.0,0.16088807]
[1744772909380,0.12833795,83928.0,83927.0,0.001]
[1744772909581,0.119172,83919.0,83918.0,0.1191722]
[1744772909883,0.119172,83919.0,83908.0,0.06001585]
[1744772909884,0.1191819,83912.0,83908.0,0.00042265]
[1744772910077,0.4799819,83912.0,83909.0,0.0595931]
[1744772910274,0.4799819,83912.0,83908.0,0.00042265]
[1744772910475,0.4799819,83912.0,83909.0,0.1191859]
[1744772910778,0.1191862,83909.0,83908.0,0.00042265]
[1744772911370,0.1191862,83909.0,83908.0,0.00050265]
[1744772911586,0.1191862,83909.0,83908.0,0.00042265]
[1744772911786,0.1191862,83909.0,83908.0,0.00050265]
[1744772912080,0.1191862,83909.0,83908.0,0.00042265]
[1744772912272,0.1191862,83909.0,83908.0,0.00150265]
[1744772912882,0.13096225,83909.0,83908.0,0.00150265]
[1744772913384,0.13096225,83909.0,83908.0,0.12069025]
[1744772913570,0.13296225,83909.0,83908.0,0.12069025]
[1744772913771,0.1211862,83909.0,83908.0,0.12069025]
[1744772914180,0.00208,83909.0,83908.0,0.12069025]